[Event "The Allsvenskan 2024/25 Div I 3: SS Manhem II - SS Manhem"]
[Site "Goteborgs Schackcentrum, Vegatan 20, Gothenburg, Sweden"]
[Date "2025.01.12"]
[Round "1.6"]
[White "Herrman, Jan"]
[Black "Berggren Torell, Harald"]
[Result "0-1"]
[TimeControl "90 minutes for 40 moves + 30 minutes for the rest of the game + 30 seconds per move from move one."]
[WhiteFideId "1731882"]
[BlackFideId "1714031"]
[WhiteElo "1918"]
[BlackElo "2053"]

1. d4 {[%clk 01:30:53]} {[%emt 00:00:06]} d6 {[%clk 01:30:53]} {[%emt
00:00:06]} 2. c4 {[%clk 01:30:49]} {[%emt 00:00:35]} e5 {[%clk 01:31:08]}
{[%emt 00:00:16]} 3. dxe5 {[%clk 01:31:04]} {[%emt 00:00:15]} dxe5 {[%clk
01:31:36]} {[%emt 00:00:02]} 4. Qxd8+ {[%clk 01:31:24]} {[%emt 00:00:09]} Kxd8
{[%clk 01:32:02]} {[%emt 00:00:04]} 5. Nc3 {[%clk 01:29:39]} {[%emt 00:02:15]}
Be6 {[%clk 01:30:37]} {[%emt 00:01:56]} 6. e4 {[%clk 01:29:11]} {[%emt
00:00:57]} Nf6 {[%clk 01:29:22]} {[%emt 00:01:46]} 7. Bg5 {[%clk 01:21:37]}
{[%emt 00:08:03]} Bc5 {[%clk 01:25:03]} {[%emt 00:04:50]} 8. Nf3 {[%clk
01:16:46]} {[%emt 00:05:20]} h6 {[%clk 00:57:25]} {[%emt 00:28:09]} 9. Bh4
{[%clk 01:11:59]} {[%emt 00:05:17]} Nc6 {[%clk 00:45:33]} {[%emt 00:12:22]} 10.
Be2 {[%clk 01:06:48]} {[%emt 00:05:40]} Kc8 {[%clk 00:32:34]} {[%emt 00:13:30]}
11. O-O-O {[%clk 00:59:35]} {[%emt 00:07:42]} Nd4 {[%clk 00:18:49]} {[%emt
00:14:15]} 12. Nxd4 {[%clk 00:54:34]} {[%emt 00:05:31]} Bxd4 {[%clk 00:19:16]}
{[%emt 00:00:03]} 13. Nb5 {[%clk 00:48:13]} {[%emt 00:06:52]} Bc5 {[%clk
00:19:14]} {[%emt 00:00:32]} 14. Nc3 {[%clk 00:47:34]} {[%emt 00:01:09]} c6
{[%clk 00:17:35]} {[%emt 00:02:09]} 15. Bg3 {[%clk 00:47:22]} {[%emt 00:00:41]}
Bd4 {[%clk 00:17:04]} {[%emt 00:01:01]} 16. f3 {[%clk 00:46:50]} {[%emt
00:01:02]} Nh5 {[%clk 00:11:29]} {[%emt 00:06:06]} 17. Be1 {[%clk 00:38:54]}
{[%emt 00:08:24]} Nf4 {[%clk 00:11:40]} {[%emt 00:00:21]} 18. Bf1 {[%clk
00:39:18]} {[%emt 00:00:06]} Be3+ {[%clk 00:04:59]} {[%emt 00:07:11]} 19. Bd2
{[%clk 00:38:33]} {[%emt 00:01:14]} Bc5 {[%clk 00:03:21]} {[%emt 00:02:09]} 20.
Kc2 {[%clk 00:38:21]} {[%emt 00:00:40]} Kc7 {[%clk 00:02:27]} {[%emt 00:01:25]}
21. b3 {[%clk 00:32:52]} {[%emt 00:06:00]} Rad8 {[%clk 00:02:27]} {[%emt
00:00:29]} 22. Bxf4 {[%clk 00:26:44]} {[%emt 00:06:38]} exf4 {[%clk 00:02:47]}
{[%emt 00:00:11]} 23. Be2 {[%clk 00:25:59]} {[%emt 00:01:15]} g5 {[%clk
00:01:26]} {[%emt 00:01:51]} 24. Rxd8 {[%clk 00:26:20]} {[%emt 00:00:08]} Kxd8
{[%clk 00:01:31]} {[%emt 00:00:25]} 25. Rd1+ {[%clk 00:26:29]} {[%emt
00:00:21]} Ke7 {[%clk 00:01:41]} {[%emt 00:00:21]} 26. h3 {[%clk 00:23:46]}
{[%emt 00:03:13]} f6 {[%clk 00:01:15]} {[%emt 00:00:55]} 27. Na4 {[%clk
00:23:10]} {[%emt 00:01:06]} Be3 {[%clk 00:01:30]} {[%emt 00:00:16]} 28. c5
{[%clk 00:21:07]} {[%emt 00:02:32]} b5 {[%clk 00:01:26]} {[%emt 00:00:35]} 29.
cxb6 {[%clk 00:20:14]} {[%emt 00:01:23]} axb6 {[%clk 00:01:55]} 30. Bc4 {[%clk
00:13:05]} {[%emt 00:07:39]} Bd7 {[%clk 00:02:23]} {[%emt 00:00:02]} 31. Nc3
{[%clk 00:11:22]} {[%emt 00:02:12]} Ra8 {[%clk 00:01:44]} {[%emt 00:01:10]} 32.
a4 {[%clk 00:11:42]} {[%emt 00:00:10]} Bc5 {[%clk 00:01:47]} {[%emt 00:00:27]}
33. Re1 {[%clk 00:08:59]} {[%emt 00:03:12]} Bd6 {[%clk 00:01:59]} {[%emt
00:00:19]} 34. Rd1 {[%clk 00:09:04]} {[%emt 00:00:25]} h5 {[%clk 00:01:53]}
{[%emt 00:00:36]} 35. Kd2 {[%clk 00:06:18]} {[%emt 00:03:16]} Be5 {[%emt
00:01:11]} 36. Kc2 {[%clk 00:05:48]} {[%emt 00:00:13]} Ra7 {[%clk 00:02:18]}
{[%emt 00:00:10]} 37. Rd2 {[%clk 00:05:04]} {[%emt 00:01:14]} Ra8 {[%clk
00:02:16]} {[%emt 00:00:33]} 38. Re2 {[%clk 00:04:31]} {[%emt 00:01:02]} Ra7
{[%clk 00:02:02]} {[%emt 00:00:45]} 39. Rd2 {[%clk 00:04:44]} {[%emt 00:00:16]}
Rb7 {[%clk 00:02:09]} {[%emt 00:00:23]} 40. Be2 {[%clk 00:04:09]} {[%emt
00:01:05]} Be8 {[%clk 00:24:58]} {[%emt 00:02:52]} 41. Bc4 Ra7 {[%clk
00:25:21]} {[%emt 00:08:20]} 42. Be2 {[%emt 00:01:03]} Ra5 {[%clk 00:25:15]}
{[%emt 00:00:17]} 43. b4 {[%emt 00:05:59]} Ra7 {[%clk 00:21:47]} {[%emt
00:01:38]} 44. b5 {[%clk 00:28:00]} {[%emt 00:00:22]} Rc7 {[%clk 00:16:54]}
{[%emt 00:05:23]} 45. Kb3 {[%clk 00:23:13]} {[%emt 00:05:17]} Bf7+ {[%clk
00:16:12]} {[%emt 00:01:13]} 46. Kb4 {[%clk 00:23:30]} {[%emt 00:00:14]} c5+
{[%clk 00:16:36]} {[%emt 00:00:06]} 47. Nb1 {[%clk 00:22:38]} 0-1

[Event "The Allsvenskan 2024/25 Div I 3: SS Manhem II - SS Manhem"]
[Site "Goteborgs Schackcentrum, Vegatan 20, Gothenburg, Sweden"]
[Date "2025.01.12"]
[Round "1.7"]
[White "Pettersson, Anders"]
[Black "Abrahamsson, Patrik"]
[Result "1-0"]
[TimeControl "90 minutes for 40 moves + 30 minutes for the rest of the game + 30 seconds per move from move one."]
[WhiteFideId "1715143"]
[BlackFideId "1716484"]
[WhiteElo "2068"]
[BlackElo "1966"]

1. d4 {[%clk 01:27:09]} {[%emt 00:03:50]} Nf6 {[%clk 01:30:53]} {[%emt
00:00:07]} 2. c4 {[%clk 01:27:34]} {[%emt 00:00:04]} g6 {[%clk 01:31:13]}
{[%emt 00:00:10]} 3. Nc3 {[%clk 01:28:00]} {[%emt 00:00:05]} d5 {[%clk
01:31:23]} {[%emt 00:00:20]} 4. Bf4 {[%clk 01:25:53]} {[%emt 00:02:36]} Bg7
{[%clk 01:30:02]} {[%emt 00:01:52]} 5. e3 {[%clk 01:25:49]} {[%emt 00:00:35]}
O-O {[%clk 01:29:23]} {[%emt 00:01:08]} 6. cxd5 {[%clk 01:26:02]} {[%emt
00:00:18]} Nxd5 {[%clk 01:29:36]} {[%emt 00:00:17]} 7. Nxd5 {[%clk 01:26:25]}
{[%emt 00:00:06]} Qxd5 {[%clk 01:28:56]} {[%emt 00:01:11]} 8. Bxc7 {[%clk
01:26:49]} {[%emt 00:00:06]} Na6 {[%clk 01:28:38]} {[%emt 00:00:48]} 9. Bxa6
{[%clk 01:22:43]} {[%emt 00:04:35]} Qxg2 {[%clk 01:26:36]} {[%emt 00:02:33]} 10.
Qf3 {[%clk 01:23:02]} {[%emt 00:00:10]} Qxf3 {[%clk 01:26:58]} {[%emt
00:00:09]} 11. Nxf3 {[%clk 01:23:31]} {[%emt 00:00:01]} bxa6 {[%clk 01:27:10]}
{[%emt 00:00:18]} 12. O-O {[%clk 01:23:47]} {[%emt 00:00:12]} Bb7 {[%clk
01:27:01]} {[%emt 00:00:39]} 13. Ne5 {[%clk 01:18:37]} {[%emt 00:05:40]} Rac8
{[%clk 01:19:03]} {[%emt 00:08:29]} 14. Rfc1 {[%clk 01:14:18]} {[%emt
00:04:49]} Bh6 {[%clk 01:04:47]} {[%emt 00:14:45]} 15. Rc5 {[%clk 01:06:56]}
{[%emt 00:07:53]} f6 {[%clk 01:00:12]} {[%emt 00:05:04]} 16. Nd3 {[%clk
01:00:03]} {[%emt 00:07:23]} Bf3 {[%clk 00:56:32]} {[%emt 00:04:11]} 17. Nb4
{[%clk 00:56:31]} {[%emt 00:04:02]} a5 {[%clk 00:56:11]} {[%emt 00:00:51]} 18.
Bxa5 {[%clk 00:54:53]} {[%emt 00:02:08]} Rxc5 {[%clk 00:52:24]} {[%emt
00:04:17]} 19. dxc5 {[%clk 00:55:21]} {[%emt 00:00:02]} Rc8 {[%clk 00:52:28]}
{[%emt 00:00:26]} 20. Rc1 {[%clk 00:50:44]} {[%emt 00:05:07]} f5 {[%clk
00:51:01]} {[%emt 00:01:57]} 21. Nd3 {[%clk 00:46:57]} {[%emt 00:04:17]} Bg7
{[%clk 00:44:29]} {[%emt 00:07:01]} 22. Bc3 {[%clk 00:45:34]} {[%emt 00:01:54]}
Be4 {[%clk 00:43:13]} {[%emt 00:01:46]} 23. Bxg7 {[%clk 00:44:11]} {[%emt
00:01:53]} Kxg7 {[%clk 00:41:29]} {[%emt 00:02:14]} 24. Ne5 {[%clk 00:40:49]}
{[%emt 00:03:52]} Kf6 {[%clk 00:41:07]} {[%emt 00:00:50]} 25. f4 {[%clk
00:41:13]} {[%emt 00:00:08]} g5 {[%clk 00:39:31]} {[%emt 00:02:06]} 26. b4
{[%clk 00:32:56]} {[%emt 00:08:46]} h5 {[%clk 00:30:09]} {[%emt 00:09:52]} 27.
Kf2 {[%clk 00:31:43]} {[%emt 00:01:43]} h4 {[%clk 00:29:19]} {[%emt 00:01:18]}
28. a4 {[%clk 00:30:23]} {[%emt 00:01:53]} g4 {[%clk 00:28:44]} {[%emt
00:01:05]} 29. b5 {[%clk 00:25:30]} {[%emt 00:05:23]} Ke6 {[%clk 00:19:20]}
{[%emt 00:09:54]} 30. c6 {[%clk 00:24:20]} {[%emt 00:01:41]} Rg8 {[%clk
00:18:52]} {[%emt 00:00:57]} 31. Rg1 {[%clk 00:15:49]} {[%emt 00:09:00]} g3+
{[%clk 00:11:55]} {[%emt 00:07:27]} 32. hxg3 {[%clk 00:15:47]} {[%emt
00:00:32]} h3 {[%clk 00:10:12]} {[%emt 00:02:13]} 33. Nf3 {[%clk 00:16:02]}
{[%emt 00:00:16]} Kd6 {[%clk 00:08:33]} {[%emt 00:02:09]} 34. Rd1+ {[%clk
00:11:49]} {[%emt 00:04:43]} Kc5 {[%clk 00:07:15]} {[%emt 00:01:48]} 35. Ng5
{[%clk 00:06:50]} {[%emt 00:05:28]} Rxg5 {[%clk 00:04:49]} {[%emt 00:02:57]} 36.
fxg5 {[%clk 00:06:56]} {[%emt 00:00:23]} f4 {[%clk 00:04:19]} {[%emt 00:01:00]}
37. gxf4 {[%clk 00:06:25]} {[%emt 00:01:02]} h2 {[%clk 00:04:08]} {[%emt
00:00:41]} 38. c7 {[%clk 00:06:45]} {[%emt 00:00:10]} Bb7 {[%clk 00:04:15]}
{[%emt 00:00:23]} 39. Rh1 {[%clk 00:07:03]} {[%emt 00:00:11]} 1-0

[Event "The Allsvenskan 2024/25 Div I 3: SS Manhem II - SS Manhem"]
[Site "Goteborgs Schackcentrum, Vegatan 20, Gothenburg, Sweden"]
[Date "2025.01.12"]
[Round "1.8"]
[White "Lennartsson, Johan"]
[Black "Bengtsson, Jonas"]
[Result "0-1"]
[TimeControl "90 minutes for 40 moves + 30 minutes for the rest of the game + 30 seconds per move from move one."]
[WhiteFideId "1721356"]
[BlackFideId "1715135"]
[WhiteElo "1826"]
[BlackElo "2002"]

1. e4 {[%clk 01:30:57]} {[%emt 00:00:03]} c5 {[%clk 01:30:54]} {[%emt
00:00:05]} 2. a3 {[%clk 01:31:18]} {[%emt 00:00:10]} g6 {[%clk 01:29:14]}
{[%emt 00:02:10]} 3. b4 {[%clk 01:31:28]} {[%emt 00:00:20]} Bg7 {[%clk
01:29:39]} {[%emt 00:00:04]} 4. Nc3 {[%clk 01:31:53]} {[%emt 00:00:06]} d6
{[%clk 01:28:45]} {[%emt 00:01:23]} 5. Bb2 {[%clk 01:31:24]} {[%emt 00:01:00]}
Nc6 {[%clk 01:27:55]} {[%emt 00:01:20]} 6. b5 {[%clk 01:31:30]} {[%emt
00:00:24]} Nd4 {[%clk 01:28:17]} {[%emt 00:00:07]} 7. Nf3 {[%clk 01:28:27]}
{[%emt 00:03:34]} Bg4 {[%clk 01:22:48]} {[%emt 00:05:59]} 8. Be2 {[%clk
01:27:01]} {[%emt 00:01:56]} Bxf3 {[%clk 01:19:15]} {[%emt 00:04:02]} 9. Bxf3
{[%clk 01:26:12]} {[%emt 00:01:21]} e6 {[%clk 01:12:25]} {[%emt 00:07:20]} 10.
Rb1 {[%clk 01:23:59]} {[%emt 00:02:43]} Ne7 {[%clk 01:12:34]} {[%emt 00:00:19]}
11. O-O {[%clk 01:23:41]} {[%emt 00:00:49]} O-O {[%clk 01:12:57]} {[%emt
00:00:06]} 12. Ba1 {[%clk 01:21:34]} {[%emt 00:02:37]} Qd7 {[%clk 01:05:01]}
{[%emt 00:08:26]} 13. g3 {[%clk 01:16:02]} {[%emt 00:06:03]} Nxf3+ {[%clk
01:01:52]} {[%emt 00:03:38]} 14. Qxf3 {[%clk 01:16:21]} {[%emt 00:00:11]} Rfd8
{[%clk 00:53:25]} {[%emt 00:08:57]} 15. Rb3 {[%clk 01:12:39]} {[%emt 00:04:12]}
d5 {[%clk 00:51:47]} {[%emt 00:02:08]} 16. d3 {[%clk 01:09:40]} {[%emt
00:03:29]} Rac8 {[%clk 00:50:32]} {[%emt 00:01:45]} 17. Ne2 {[%clk 01:08:01]}
{[%emt 00:02:09]} d4 {[%clk 00:38:55]} {[%emt 00:12:07]} 18. a4 {[%clk
01:06:21]} {[%emt 00:02:11]} c4 {[%clk 00:37:56]} {[%emt 00:01:28]} 19. dxc4
{[%clk 00:54:53]} {[%emt 00:11:59]} Rxc4 {[%clk 00:38:16]} {[%emt 00:00:08]} 20.
Rd1 {[%clk 00:51:08]} {[%emt 00:04:16]} Rxa4 {[%clk 00:29:56]} {[%emt
00:08:50]} 21. Qd3 {[%clk 00:48:44]} {[%emt 00:02:54]} Qc7 {[%clk 00:25:27]}
{[%emt 00:04:58]} 22. c3 {[%clk 00:44:08]} {[%emt 00:05:08]} e5 {[%clk
00:25:40]} {[%emt 00:00:17]} 23. cxd4 {[%clk 00:43:22]} {[%emt 00:01:16]} exd4
{[%clk 00:26:01]} {[%emt 00:00:08]} 24. f4 {[%clk 00:41:51]} {[%emt 00:02:01]}
h5 {[%clk 00:24:18]} {[%emt 00:02:13]} 25. Bb2 {[%clk 00:37:55]} {[%emt
00:04:26]} Rc4 {[%clk 00:21:40]} {[%emt 00:03:07]} 26. Ba3 {[%clk 00:35:39]}
{[%emt 00:02:47]} Rc8 {[%clk 00:18:49]} {[%emt 00:03:22]} 27. Rc1 {[%clk
00:28:16]} {[%emt 00:07:53]} Rxc1+ {[%clk 00:18:55]} {[%emt 00:00:23]} 28. Nxc1
{[%clk 00:28:39]} {[%emt 00:00:07]} h4 {[%clk 00:17:27]} {[%emt 00:01:58]} 29.
Ne2 {[%clk 00:26:33]} {[%emt 00:02:36]} Rd8 {[%clk 00:15:37]} {[%emt 00:02:20]}
30. Rb4 {[%clk 00:24:17]} {[%emt 00:02:45]} a5 {[%clk 00:14:33]} {[%emt
00:01:35]} 31. Rc4 {[%clk 00:23:57]} {[%emt 00:00:51]} Qd7 {[%clk 00:14:12]}
{[%emt 00:00:50]} 32. Bxe7 {[%clk 00:22:45]} {[%emt 00:01:42]} Qxe7 {[%clk
00:14:32]} {[%emt 00:00:11]} 33. e5 {[%clk 00:21:40]} {[%emt 00:01:35]} Bf8
{[%clk 00:11:04]} {[%emt 00:03:56]} 34. Rxd4 {[%clk 00:19:04]} {[%emt
00:03:07]} Rxd4 {[%clk 00:09:45]} {[%emt 00:01:49]} 35. Nxd4 {[%clk 00:18:20]}
{[%emt 00:01:14]} Qb4 {[%clk 00:09:09]} {[%emt 00:01:06]} 36. Kg2 {[%clk
00:17:31]} {[%emt 00:01:20]} Qb2+ {[%clk 00:06:57]} {[%emt 00:02:41]} 37. Kh3
{[%clk 00:16:53]} {[%emt 00:01:07]} hxg3 {[%clk 00:07:14]} {[%emt 00:00:13]} 38.
hxg3 {[%clk 00:17:02]} {[%emt 00:00:22]} Qa1 {[%clk 00:07:06]} {[%emt
00:00:38]} 39. Qe4 {[%clk 00:15:36]} {[%emt 00:01:56]} Qf1+ {[%clk 00:06:54]}
{[%emt 00:00:42]} 40. Kg4 {[%clk 00:13:54]} {[%emt 00:02:12]} a4 {[%clk
00:01:38]} {[%emt 00:05:46]} 41. Qxb7 {[%clk 00:08:43]} {[%emt 00:05:41]} Qd1+
{[%clk 00:01:06]} {[%emt 00:01:02]} 42. Nf3 {[%clk 00:08:58]} {[%emt 00:00:15]}
Qh1 {[%clk 00:01:16]} {[%emt 00:00:21]} 43. f5 {[%clk 00:07:12]} {[%emt
00:02:15]} Qh5+ {[%clk 00:28:49]} {[%emt 00:02:57]} 44. Kf4 {[%clk 00:37:36]}
{[%emt 00:00:06]} Qxf5+ {[%clk 00:28:59]} {[%emt 00:00:20]} 45. Ke3 {[%clk
00:37:47]} {[%emt 00:00:19]} a3 {[%clk 00:29:16]} {[%emt 00:00:13]} 46. Qd5
{[%clk 00:37:49]} {[%emt 00:00:28]} Bh6+ {[%clk 00:27:58]} {[%emt 00:01:48]} 47.
Ke2 {[%clk 00:37:27]} {[%emt 00:00:51]} Qc2+ {[%clk 00:28:18]} {[%emt
00:00:11]} 48. Nd2 {[%clk 00:37:33]} {[%emt 00:00:25]} Qxd2+ {[%clk 00:28:38]}
{[%emt 00:00:09]} 0-1